[Event "13th All African Rapid-ch Men 2024"]
[Site "Accra"]
[Date "2024.03.10"]
[Round "2.7"]
[White "Fomevor, Cephas Clinton"]
[Black "Wanyama, Harold"]
[Result "0-1"]
[ECO "D35"]
[WhiteElo "1887"]
[BlackElo "2226"]
[Annotator "TA"]
[PlyCount "73"]
[EventDate "2024.03.07"]
[EventType "rapid"]
[EventCountry "GHA"]
[SourceTitle "playchess.com"]
[Source "ChessBase"]
[SourceQuality "1"]
[TimeControl "900+10"]

{[%evp 15,73,-4,42,46,59,17,19,0,13,-14,0,-10,0,0,0,0,0,0,52,24,11,2,35,35,37,9,6,0,0,0,8,9,5,5,20,-19,-20,-31,-12,-14,-18,-12,-12,-12,-7,-7,-5,-203,-5,-14,-1,-14,-7,-9,0,-7,41,0,0,0]} 1. d4 {[%emt 0:00:02]} d5 {[%emt 0:00:04]} 2. c4 {[%emt 0:00:03]} e6 {[%emt 0:00:03]} 3. cxd5 {[%emt 0:00:03]} exd5 {[%emt 0:00:01]} 4. Nc3 {[%emt 0:00:02]} c6 {[%emt 0:00:04]} 5. Nf3 {[%emt 0:00:02]} Bf5 {[%emt 0:00:09]} 6. Bg5 {[%emt 0:00:07]} Nf6 {[%emt 0:00:17]} 7. e3 {[%emt 0:00:03]} Be7 {[%emt 0:00:03]} 8. Bd3 {[%emt 0:00:02]} Ne4 {[%emt 0:00:14]} (8... Bxd3 $11 9. Qxd3 Nbd7) 9. Bf4 $14 {[%emt 0:01:11]} O-O {[%emt 0:00:09]} 10. O-O {[%emt 0:00:03]} Nd7 {[%emt 0:00:03]} 11. Rc1 {[%emt 0:00:45]} Re8 {[%emt 0:00:11]} 12. a3 {[%emt 0:00:09]} Bf8 {[%emt 0:00:08]} 13. Na4 {[%emt 0:01:15]} Bg6 {[%emt 0:00:16]} 14. b4 {[%emt 0:00:09]} a5 {[%emt 0:01:53]} 15. Nc5 {[%emt 0:00:08]} axb4 {[%emt 0:00:32]} 16. axb4 {[%emt 0:00:03]} b6 {[%emt 0:00:21]} (16... Ra3 $11) 17. Na6 {[%emt 0:04:18]} Rc8 {[%emt 0:00:07]} 18. Qb3 {[%emt 0:00:47]} b5 {[%emt 0:01:10]} 19. Rc2 {[%emt 0:01:00]} Nb6 {[%emt 0:00:08]} 20. Nc5 {[%emt 0:01:33]} Nc4 {[%emt 0:00:04]} 21. Bxe4 {[%emt 0:00:36]} (21. Ra2 {looks sharper.} Ra8 22. Rfa1 Rxa2 23. Rxa2 Qc8 24. Be2) 21... Bxe4 {[%emt 0:00:28]} 22. Nxe4 {[%emt 0:00:08]} dxe4 {[%emt 0:01:09]} 23. Ne5 {[%emt 0:00:43]} Nxe5 {[%emt 0:00:19]} 24. Bxe5 {[%emt 0:00:03]} Qd5 {[%emt 0:00:06]} 25. Qb1 {[%emt 0:02:29]} Ra8 {[%emt 0:00:06]} 26. Rfc1 {[%emt 0:00:05]} Ra6 {[%emt 0:00:07]} 27. Bc7 {[%emt 0:00:28]} Re6 {[%emt 0:00:04]} 28. Ba5 {[%emt 0:00:35]} h5 {[%emt 0:00:08]} 29. Rc3 {[%emt 0:00:45]} h4 {[%emt 0:00:14][%cal Oh4h3]} 30. h3 {[%emt 0:00:04]} Rg6 {[%emt 0:00:09]} 31. R1c2 $2 {[%emt 0:00:29] [#]} (31. Qc2 $11) 31... Kh7 $2 {[%emt 0:00:49]} (31... Qf5 $19 32. Kh2 Bd6+ 33. Kh1 Kh7) 32. Qf1 {[%emt 0:00:05]} f5 {[%emt 0:00:08]} 33. Kh1 {[%emt 0:00:21]} Bd6 {[%emt 0:00:07]} 34. Qe2 {[%emt 0:01:33]} Kh6 {[%emt 0:00:30]} 35. Qe1 {[%emt 0:00:19]} f4 {[%emt 0:01:24] [#]} (35... Be7 $11 {might be stronger.}) 36. f3 $1 {[%emt 0:00:16][%cal Oc3c5] Rc5! is the strong threat.} Rg3 {[%emt 0:00:43]} 37. exf4 {[%emt 0:00:36][%mdl 32768] Weighted Error Value: White=0.23 (precise) /Black=0.22 (precise) .  Loses game:     	White=1     	---        Missed win:     	---       	Black=1      Mistake:       	---       	Black=2      Inaccurate:     	White=6     	Black=1      OK:         	White=4     	Black=7      Best:        	White=2     	---       . Loss on time!?} 0-1

[Event "13th All African Rapid-ch Men 2024"]
[Site "Accra"]
[Date "2024.03.10"]
[Round "2.8"]
[White "Yacouba, Souley Moussa"]
[Black "Pereira, Sergio Murilo de Ara"]
[Result "0-1"]
[ECO "D02"]
[WhiteElo "1645"]
[BlackElo "2115"]
[Annotator "ChessBase"]
[PlyCount "62"]
[EventDate "2024.03.07"]
[EventType "rapid"]
[EventCountry "GHA"]
[SourceTitle "playchess.com"]
[Source "ChessBase"]
[SourceQuality "1"]
[TimeControl "900+10"]

1. d4 {[%emt 0:00:07]} d5 {[%emt 0:00:02]} 2. Bf4 {[%emt 0:00:06]} Nf6 {[%emt 0:00:03]} 3. e3 {[%emt 0:00:05]} c5 {[%emt 0:00:02]} 4. c3 {[%emt 0:00:41]} Nc6 {[%emt 0:00:36]} 5. Nf3 {[%emt 0:00:05]} Qb6 {[%emt 0:00:10]} 6. Qb3 {[%emt 0:00:11]} c4 {[%emt 0:00:02]} 7. Qxb6 {[%emt 0:00:49]} axb6 {[%emt 0:00:01]} 8. h3 {[%emt 0:00:13]} Bf5 {[%emt 0:00:28]} 9. Nbd2 {[%emt 0:00:27]} h6 {[%emt 0:01:11]} 10. Be2 {[%emt 0:01:15]} b5 {[%emt 0:00:16]} 11. O-O {[%emt 0:00:20]} e6 {[%emt 0:00:12]} 12. a3 {[%emt 0:02:06]} Nd7 {[%emt 0:00:25]} 13. Nh4 {[%emt 0:01:22]} Bh7 {[%emt 0:00:03]} 14. Bh2 {[%emt 0:00:19]} Nb6 {[%emt 0:13:59]} 15. Nhf3 {[%emt 0:00:22]} Na4 {[%emt 0:00:00]} 16. Ra2 {[%emt 0:00:23]} Be7 {[%emt 0:00:00]} 17. Be5 {[%emt 0:01:46]} O-O {[%emt 0:00:00]} 18. Rc1 {[%emt 0:02:04]} Nxb2 {[%emt 0:00:00]} 19. Nb1 {[%emt 0:03:06]} Na4 {[%emt 0:00:00]} 20. Bd1 {[%emt 0:00:14]} Bxb1 {[%emt 0:00:00]} 21. Ra1 {[%emt 0:00:22]} Bh7 {[%emt 0:00:00]} 22. Bg3 {[%emt 0:00:49]} Bg6 {[%emt 0:00:00]} 23. Nd2 {[%emt 0:00:05]} Ra6 {[%emt 0:00:00]} 24. Nb1 {[%emt 0:00:11]} Rfa8 {[%emt 0:00:00]} 25. Bc7 {[%emt 0:00:39]} Nb2 {[%emt 0:00:00]} 26. Bc2 {[%emt 0:00:39]} Nd3 {[%emt 0:00:00]} 27. Bxd3 {[%emt 0:00:20]} Bxd3 {[%emt 0:00:00]} 28. Be5 {[%emt 0:00:15]} Nxe5 {[%emt 0:00:00]} 29. dxe5 {[%emt 0:00:02]} Bxa3 {[%emt 0:00:00]} 30. Nxa3 {[%emt 0:00:09]} Rxa3 {[%emt 0:00:00]} 31. Kh2 {[%emt 0:00:04]} Rxa1 {[%emt 0:00:00]} 0-1

[Event "13th All African Rapid-ch Men 2024"]
[Site "Accra"]
[Date "2024.03.10"]
[Round "2.9"]
[White "Cogan, Nicolas"]
[Black "Ntamatungiro, Wilfried"]
[Result "1-0"]
[ECO "A41"]
[WhiteElo "2070"]
[BlackElo "1905"]
[Annotator "ChessBase"]
[PlyCount "125"]
[EventDate "2024.03.07"]
[EventType "rapid"]
[EventCountry "GHA"]
[SourceTitle "playchess.com"]
[Source "ChessBase"]
[SourceQuality "1"]
[TimeControl "900+10"]

1. d4 {[%emt 0:00:52]} d6 {[%emt 0:00:02]} 2. c4 {[%emt 0:00:03]} c6 {[%emt 0:00:02]} 3. Nc3 {[%emt 0:00:07]} Qc7 {[%emt 0:00:03]} 4. e4 {[%emt 0:00:07]} e5 {[%emt 0:00:04]} 5. d5 {[%emt 0:00:14]} Nf6 {[%emt 0:00:03]} 6. h3 {[%emt 0:01:25]} Be7 {[%emt 0:00:05]} 7. Bd3 {[%emt 0:00:06]} O-O {[%emt 0:00:06]} 8. Nge2 {[%emt 0:00:13]} Re8 {[%emt 0:00:07]} 9. Be3 {[%emt 0:00:06]} Nbd7 {[%emt 0:00:11]} 10. O-O {[%emt 0:00:16]} Nf8 {[%emt 0:00:05]} 11. b4 {[%emt 0:00:15]} Ng6 {[%emt 0:00:12]} 12. Qd2 {[%emt 0:00:44]} Nh5 {[%emt 0:01:00]} 13. Rac1 {[%emt 0:00:58]} Bd7 {[%emt 0:00:56]} 14. c5 {[%emt 0:00:29]} Rad8 {[%emt 0:00:55]} 15. a3 {[%emt 0:00:46]} Nh4 {[%emt 0:01:44]} 16. f3 {[%emt 0:01:08]} Qc8 {[%emt 0:00:46]} 17. cxd6 {[%emt 0:05:39]} Bxh3 {[%emt 0:02:41]} 18. dxe7 {[%emt 0:03:08]} Rd6 {[%emt 0:00:30]} 19. Bg5 {[%emt 0:00:47]} Nxg2 {[%emt 0:02:00]} 20. Kf2 {[%emt 0:00:42]} Rg6 {[%emt 0:00:20]} 21. Rh1 {[%emt 0:00:16]} h6 {[%emt 0:02:18]} 22. Rcg1 {[%emt 0:00:12]} Rxg5 {[%emt 0:00:15]} 23. d6 {[%emt 0:00:05]} Qe6 {[%emt 0:02:00]} 24. Bb1 {[%emt 0:00:17]} a5 {[%emt 0:02:02]} 25. Ba2 {[%emt 0:00:03]} Qd7 {[%emt 0:00:04]} 26. Rh2 {[%emt 0:00:10]} Ngf4 {[%emt 0:00:07]} 27. Rxg5 {[%emt 0:00:03]} hxg5 {[%emt 0:00:03]} 28. Bc4 {[%emt 0:00:25]} b5 {[%emt 0:00:08]} 29. Ba2 {[%emt 0:00:12]} a4 {[%emt 0:00:01]} 30. Ng3 {[%emt 0:00:08]} Qa7+ {[%emt 0:00:10]} 31. Qe3 {[%emt 0:00:11]} Nd3+ {[%emt 0:00:06]} 32. Ke2 {[%emt 0:00:03]} Nxg3+ {[%emt 0:00:05]} 33. Kxd3 {[%emt 0:00:01]} Bf1+ {[%emt 0:00:02]} 34. Kd2 {[%emt 0:00:02]} Qd7 {[%emt 0:00:39]} 35. Qc5 {[%emt 0:00:02]} Bc4 {[%emt 0:00:09]} 36. Bxc4 {[%emt 0:00:02]} bxc4 {[%emt 0:00:05]} 37. Kc1 {[%emt 0:00:42]} g4 {[%emt 0:00:10]} 38. Qxe5 {[%emt 0:00:06]} Nf1 {[%emt 0:00:14]} 39. Rh1 {[%emt 0:00:10]} f6 {[%emt 0:00:23]} 40. Qd4 {[%emt 0:00:20]} Ne3 {[%emt 0:00:18]} 41. Qxe3 {[%emt 0:00:13]} Qxd6 {[%emt 0:00:02]} 42. fxg4 {[%emt 0:00:10]} Rxe7 {[%emt 0:00:08]} 43. Rd1 {[%emt 0:00:04]} Qh2 {[%emt 0:00:08]} 44. Rd8+ {[%emt 0:00:06]} Kf7 {[%emt 0:00:03]} 45. Rd2 {[%emt 0:00:04]} Qh1+ {[%emt 0:00:03]} 46. Kb2 {[%emt 0:00:01]} Qf1 {[%emt 0:00:26]} 47. Qe2 {[%emt 0:00:02]} Qf4 {[%emt 0:00:04]} 48. Qxc4+ {[%emt 0:00:02]} Kg6 {[%emt 0:00:03]} 49. Qd3 {[%emt 0:00:10]} Qxg4 {[%emt 0:00:08]} 50. e5+ {[%emt 0:01:03]} Kf7 {[%emt 0:01:14]} 51. exf6 {[%emt 0:00:00]} gxf6 {[%emt 0:00:00]} 52. Nxa4 {[%emt 0:00:00]} Re1 {[%emt 0:00:00]} 53. Qd7+ {[%emt 0:00:00]} Qxd7 {[%emt 0:00:00]} 54. Rxd7+ {[%emt 0:00:00]} Ke6 {[%emt 0:00:00]} 55. Nc5+ {[%emt 0:00:00]} Kf5 {[%emt 0:00:00]} 56. a4 {[%emt 0:00:00]} Re2+ {[%emt 0:00:01]} 57. Kc3 {[%emt 0:00:08]} Re1 {[%emt 0:00:08]} 58. a5 {[%emt 0:00:09]} Rc1+ {[%emt 0:00:24]} 59. Kb2 {[%emt 0:00:07]} Rc4 {[%emt 0:00:20]} 60. Kb3 {[%emt 0:00:02]} Rc1 {[%emt 0:00:01]} 61. a6 {[%emt 0:00:01]} Ra1 {[%emt 0:00:02]} 62. a7 {[%emt 0:00:02]} Ke5 {[%emt 0:00:03]} 63. Na4 {[%emt 0:01:41]} 1-0

[Event "13th All African Rapid-ch Men 2024"]
[Site "Accra"]
[Date "2024.03.10"]
[Round "2.10"]
[White "Pedro Manuel Envo Engonga Avom"]
[Black "Oluka Robert Mcligeyo"]
[Result "1-0"]
[ECO "B30"]
[WhiteElo "1702"]
[BlackElo "2041"]
[Annotator "ChessBase"]
[PlyCount "105"]
[EventDate "2024.03.07"]
[EventType "rapid"]
[EventCountry "GHA"]
[SourceTitle "playchess.com"]
[Source "ChessBase"]
[SourceQuality "1"]
[TimeControl "900+10"]

1. e4 {[%emt 0:00:03]} c5 {[%emt 0:00:01]} 2. Nc3 {[%emt 0:00:05]} Nc6 {[%emt 0:00:03]} 3. Nf3 {[%emt 0:00:39]} e5 {[%emt 0:00:02]} 4. b3 {[%emt 0:00:07]} d6 {[%emt 0:00:04]} 5. Nd5 {[%emt 0:00:21]} Be7 {[%emt 0:00:14]} 6. Nxe7 {[%emt 0:00:22]} Ngxe7 {[%emt 0:00:03]} 7. Bb2 {[%emt 0:00:08]} O-O {[%emt 0:00:04]} 8. Bc4 {[%emt 0:01:24]} Bg4 {[%emt 0:00:13]} 9. h3 {[%emt 0:00:02]} Bh5 {[%emt 0:00:01]} 10. g4 {[%emt 0:00:02]} Bg6 {[%emt 0:00:01]} 11. Qe2 {[%emt 0:00:17]} a6 {[%emt 0:00:10]} 12. Nh4 {[%emt 0:00:38]} Nd4 {[%emt 0:00:05]} 13. Bxd4 {[%emt 0:00:14]} cxd4 {[%emt 0:00:57]} 14. a4 {[%emt 0:01:36]} Rc8 {[%emt 0:00:33]} 15. d3 {[%emt 0:00:23]} d5 {[%emt 0:03:31]} 16. exd5 {[%emt 0:00:39]} Nxd5 {[%emt 0:00:03]} 17. Nxg6 {[%emt 0:00:14]} hxg6 {[%emt 0:00:02]} 18. Qe4 {[%emt 0:00:43]} Qa5+ {[%emt 0:00:10]} 19. Kf1 {[%emt 0:00:52]} Rfd8 {[%emt 0:01:59]} 20. Kg1 {[%emt 0:00:25]} Qc5 {[%emt 0:03:37]} 21. Qxe5 {[%emt 0:01:39]} b5 {[%emt 0:00:07]} 22. axb5 {[%emt 0:00:12]} axb5 {[%emt 0:00:01]} 23. Ra5 {[%emt 0:00:53]} Nc3 {[%emt 0:04:16]} 24. Qxc5 {[%emt 0:04:04]} Rxc5 {[%emt 0:00:02]} 25. b4 {[%emt 0:00:00]} Re5 {[%emt 0:01:04]} 26. Kg2 {[%emt 0:00:19]} Rde8 {[%emt 0:00:28]} 27. Bb3 {[%emt 0:00:14]} R8e7 {[%emt 0:00:37]} 28. Ra6 {[%emt 0:00:20]} Kh7 {[%emt 0:00:09]} 29. Rd6 {[%emt 0:00:26]} Ne2 {[%emt 0:00:24]} 30. Rf1 {[%emt 0:00:43]} g5 {[%emt 0:00:23]} 31. Kh2 {[%emt 0:00:25]} f6 {[%emt 0:00:20]} 32. Re1 {[%emt 0:01:07]} Kg6 {[%emt 0:00:13]} 33. Rd5 {[%emt 0:00:22]} Rxd5 {[%emt 0:00:11]} 34. Bxd5 {[%emt 0:00:02]} Kh6 {[%emt 0:00:15]} 35. Bf3 {[%emt 0:00:05]} Rc7 {[%emt 0:00:23]} 36. Rxe2 {[%emt 0:00:05]} Rc3 {[%emt 0:00:08]} 37. Bb7 {[%emt 0:00:18]} Ra3 {[%emt 0:00:04]} 38. Bc6 {[%emt 0:00:02]} Ra6 {[%emt 0:00:06]} 39. Bxb5 {[%emt 0:00:08]} Rb6 {[%emt 0:00:01]} 40. Bc4 {[%emt 0:00:02]} Rxb4 {[%emt 0:00:01]} 41. Re4 {[%emt 0:00:03]} Rb2 {[%emt 0:00:05]} 42. Bb3 {[%emt 0:00:04]} Rb1 {[%emt 0:00:03]} 43. Rxd4 {[%emt 0:00:02]} Rd1 {[%emt 0:00:02]} 44. Kg2 {[%emt 0:00:05]} Rd2 {[%emt 0:00:01]} 45. c4 {[%emt 0:00:06]} Rb2 {[%emt 0:00:02]} 46. Ba4 {[%emt 0:00:03]} Rb4 {[%emt 0:00:01]} 47. Bb5 {[%emt 0:00:02]} Rb2 {[%emt 0:00:02]} 48. Rd8 {[%emt 0:00:12]} g6 {[%emt 0:00:05]} 49. d4 {[%emt 0:00:01]} Rb4 {[%emt 0:00:03]} 50. d5 {[%emt 0:00:01]} Rb2 {[%emt 0:00:01]} 51. d6 {[%emt 0:00:01]} Rd2 {[%emt 0:00:01]} 52. d7 {[%emt 0:00:02]} Kg7 {[%emt 0:00:01]} 53. Re8 {[%emt 0:00:05]} 1-0

[Event "13th All African Rapid-ch Men 2024"]
[Site "Accra"]
[Date "2024.03.10"]
[Round "2.11"]
[White "Mahamat Hachim Bachar"]
[Black "Frempong-Smart Daniel"]
[Result "0-1"]
[ECO "C11"]
[WhiteElo "1843"]
[BlackElo "1877"]
[Annotator "NA"]
[PlyCount "78"]
[EventDate "2024.03.07"]
[EventType "rapid"]
[EventCountry "GHA"]
[SourceTitle "playchess.com"]
[Source "ChessBase"]
[SourceQuality "1"]
[TimeControl "900+10"]

1. e4 {[%emt 0:00:03]} Nf6 {[%emt 0:00:02]} 2. Nc3 {[%emt 0:00:05]} d5 {[%emt 0:00:01]} 3. e5 {[%emt 0:00:03]} Nfd7 {[%emt 0:00:02]} 4. d4 {[%emt 0:00:03]} e6 {[%emt 0:00:01]} 5. Nf3 {[%emt 0:00:02]} c5 {[%emt 0:00:01]} 6. Be3 {[%emt 0:00:09]} Nc6 {[%emt 0:00:04]} 7. Bb5 {[%emt 0:00:03]} Qb6 {[%emt 0:00:03]} 8. Bxc6 {[%emt 0:00:06]} bxc6 {[%emt 0:00:02]} 9. Na4 {[%emt 0:00:15]} Qa5+ {[%emt 0:00:03]} 10. c3 {[%emt 0:00:02]} cxd4 {[%emt 0:00:07]} 11. Qxd4 {[%emt 0:00:22]} Ba6 {[%emt 0:01:00]} 12. b3 {[%emt 0:00:39]} Ba3 {[%emt 0:01:31]} 13. Qg4 {[%emt 0:00:09]} Kf8 {[%emt 0:00:21]} 14. Bd2 {[%emt 0:00:06]} Qc7 {[%emt 0:00:56]} 15. Qg3 {[%emt 0:00:23]} Bb5 {[%emt 0:00:22]} 16. c4 {[%emt 0:00:14]} Bxa4 {[%emt 0:00:07]} 17. bxa4 {[%emt 0:00:02]} Bb2 {[%emt 0:00:23]} 18. Rb1 {[%emt 0:00:08]} Bxe5 {[%emt 0:00:05]} 19. Nxe5 {[%emt 0:00:11]} Qxe5+ {[%emt 0:00:08]} 20. Qxe5 {[%emt 0:00:02]} Nxe5 {[%emt 0:00:02]} 21. cxd5 {[%emt 0:00:05]} cxd5 {[%emt 0:00:14]} 22. O-O {[%emt 0:00:03]} Nc4 {[%emt 0:01:27]} 23. Bc3 {[%emt 0:00:06]} d4 {[%emt 0:01:57]} 24. Bb4+ {[%emt 0:00:01]} Ke8 {[%emt 0:00:05]} 25. Rfc1 {[%emt 0:00:04]} Rc8 {[%emt 0:00:08]} 26. Be1 {[%emt 0:00:14]} e5 {[%emt 0:04:24]} 27. Rb7 {[%emt 0:00:21]} h5 {[%emt 0:00:28]} 28. Rxc4 {[%emt 0:00:20]} Rxc4 {[%emt 0:00:06]} 29. Rb8+ {[%emt 0:00:02]} Ke7 {[%emt 0:00:03]} 30. Rxh8 {[%emt 0:00:02]} Rc1 {[%emt 0:00:13]} 31. Kf1 {[%emt 0:00:06]} d3 {[%emt 0:00:02]} 32. Rxh5 {[%emt 0:00:57]} f6 {[%emt 0:01:11]} 33. Rh7 {[%emt 0:00:26]} d2 {[%emt 0:00:25]} 34. g3 {[%emt 0:00:24]} dxe1=Q+ {[%emt 0:00:07]} 35. Kg2 {[%emt 0:00:11]} Qf1+ {[%emt 0:00:13]} 36. Kf3 {[%emt 0:00:02]} Qd3+ {[%emt 0:00:02]} 37. Kg2 {[%emt 0:00:01]} Qxh7 {[%emt 0:00:02]} 38. h4 {[%emt 0:00:01]} Qe4+ {[%emt 0:00:07]} 39. Kh3 {[%emt 0:00:04]} Rh1# {[%emt 0:00:03]} 0-1

[Event "13th All African Rapid-ch Men 2024"]
[Site "Accra"]
[Date "2024.03.10"]
[Round "3.1"]
[White "KIGIGHA, Bomo Lovet"]
[Black "Amin, Bassem"]
[Result "0-1"]
[ECO "A49"]
[WhiteElo "2231"]
[BlackElo "2670"]
[Annotator "TA"]
[PlyCount "64"]
[EventDate "2024.03.07"]
[EventType "rapid"]
[EventCountry "GHA"]
[SourceTitle "playchess.com"]
[Source "ChessBase"]
[SourceQuality "1"]
[TimeControl "900+10"]

{[%evp 17,64,-10,-13,-27,-24,-49,-29,-102,-110,-134,-64,-82,-16,-22,3,-25,-20,-23,0,-182,-175,-159,-177,-193,-123,-90,-119,-111,-120,-80,-90,-261,-229,-359,-358,-344,-353,-426,-429,-393,-341,-271,-137,-260,-261,-530,-525,-505,-490]} 1. Nf3 {[%emt 0:00:02]} Nf6 {[%emt 0:00:02]} 2. g3 {[%emt 0:00:01]} g6 {[%emt 0:00:01]} 3. Bg2 {[%emt 0:00:01]} Bg7 {[%emt 0:00:03]} 4. d4 {[%emt 0:00:01]} O-O {[%emt 0:00:03]} 5. O-O {[%emt 0:00:08]} d6 {[%emt 0:00:06][%cal Bd7d6,Bd6e5,Be5e4][%mdl 32]} 6. b3 {[%emt 0:00:01]} e5 {[%emt 0:00:33]} 7. dxe5 {[%emt 0:00:34]} dxe5 {[%emt 0:00:02]} 8. Bb2 {[%emt 0:00:13]} e4 {[%emt 0:00:08]} 9. Qxd8 {[%emt 0:00:46]} Rxd8 {[%emt 0:00:02]} 10. Ng5 {[%emt 0:00:01]} Bf5 {[%emt 0:00:46]} 11. Na3 {[%emt 0:00:40][%cal Bb1a3,Ba3b5,Bb5c7,Bc7d5][%mdl 32]} h6 {[%emt 0:00:15]} 12. Nh3 {[%emt 0:00:01]} (12. Rad1 $11 {hält das Gleichgewicht.} Nbd7 (12... Rxd1 13. Rxd1 hxg5 14. Rd8+ Kh7 15. Nb5 $11) 13. Nh3) 12... Nc6 $17 {[%emt 0:00:29]} 13. Rad1 {[%emt 0:00:20]} g5 {[%emt 0:01:38] Wehrt Nf4 ab} (13... Nb4 $17 14. Nc4 Nfd5 (14... Nxa2 15. Nf4 $17) 15. Bxg7 Kxg7) 14. Nb5 {[%emt 0:00:09]} a6 {[%emt 0:01:47]} ({Besser ist} 14... Rac8 $17 {Mit der Idee ...a6.} 15. Rxd8+ Rxd8) 15. Nxc7 $11 {[%emt 0:00:32]} Rac8 {[%emt 0:00:02] Droht stark ...Rxd1.} 16. Bxf6 {[%emt 0:00:02]} Bxf6 {[%emt 0:00:01]} 17. Nd5 {[%emt 0:00:01]} Bg7 {[%emt 0:00:07][%mdl 1024] Schwarz hat Kompensation.} 18. e3 $2 {[%emt 0:00:29]} (18. Kh1 $11 {und Weiss ist OK.}) 18... Bg4 $36 {[%emt 0:00:08][%mdl 2048] Schwarz bestimmt, wo es lang geht.} 19. Rd2 {[%emt 0:00:24]} Kf8 {[%emt 0:00:18] Schwarz steht aktiver.} (19... Bc3 20. Nxc3 Rxd2 21. Nxe4 Rxc2 22. Nf6+ Kg7 23. Nxg4 $11) 20. c4 {[%emt 0:00:05]} Ne5 {[%emt 0:00:13]} (20... b5 $1 $19 {...bxc4 ist eine echte Drohung.} 21. Rc2 Ne5) 21. Kh1 $17 {[%emt 0:00:55]} b5 {[%emt 0:00:02]} 22. Ng1 {[%emt 0:00:57]} Nf3 $1 {[%emt 0:01:09]} 23. Bxf3 {[%emt 0:00:05]} ({Vergiftet wäre} 23. Nxf3 $2 exf3 24. Rc1 fxg2+ 25. Kxg2 Be6 $19) 23... exf3 {[%emt 0:00:01]} 24. h3 $2 {[%emt 0:00:02] Der Zug kostet die Partie für Weiß.} (24. e4 $17 {war nötig.}) 24... Bf5 $1 $19 {[%emt 0:11:14]} 25. Rfd1 {[%emt 0:01:46]} (25. Rc1 $142) 25... bxc4 {[%emt 0:00:00]} 26. bxc4 {[%emt 0:00:29]} Rxc4 {[%emt 0:00:00]} 27. Nxf3 {[%emt 0:01:52][%cal Od5e7] [#]} Be4 $1 {[%emt 0:00:00] Das Läuferpaar ist gut.} ({Nicht} 27... Bxh3 28. Nf4 Rxd2 29. Nxd2 $17) 28. Kg2 {[%emt 0:00:01]} h5 {[%emt 0:00:00][%cal Bh6h5,Bh5h4][%mdl 32] Droht ...g4 und aus.} 29. g4 {[%emt 0:00:02]} f5 {[%emt 0:00:00]} (29... Rd6 $19 {...hxg4 wäre nun fies.} 30. gxh5 Rc5) 30. Kg3 {[%emt 0:00:03] [#]} (30. gxh5 $2 {zu gefräßig.} g4 31. Kg3 gxf3 $19 (31... Bxf3 $2 32. Nf4 $19)) (30. Nb6 $17 Rxd2 31. Rxd2) 30... h4+ $1 {[%emt 0:00:00]} 31. Kg2 $2 {[%emt 0:00:02]} (31. Nxh4 gxh4+ 32. Kxh4 fxg4 33. Nf4 Rxd2 34. Rxd2 gxh3 35. Kxh3) 31... fxg4 {[%emt 0:00:00]} 32. hxg4 {[%emt 0:00:01]} Rc6 {[%emt 0:00:00] Wehrt Nb6 ab.   Gewichteter Fehlerwert: Weiß=0.60/Schwarz=0.20 (präzise) .  Verlustzug:     	Weiß=2     	---        Fehler:       	Weiß=4     	Schwarz=4     Ungenau:       	Weiß=1     	---        OK:         	Weiß=5     	Schwarz=6     Bester:       	Weiß=2     	Schwarz=2     Stark:        	---       	Schwarz=4} 0-1

[Event "13th All African Rapid-ch Men 2024"]
[Site "Accra"]
[Date "2024.03.10"]
[Round "3.2"]
[White "Paiva, Donaldo"]
[Black "Arab, Adlane"]
[Result "1-0"]
[ECO "D35"]
[WhiteElo "2172"]
[BlackElo "2477"]
[Annotator "TA"]
[PlyCount "69"]
[EventDate "2024.03.07"]
[EventType "rapid"]
[EventCountry "GHA"]
[SourceTitle "playchess.com"]
[Source "ChessBase"]
[SourceQuality "1"]
[TimeControl "900+10"]

{[%evp 27,69,31,43,40,38,37,33,23,42,35,36,50,37,33,44,36,37,28,43,32,39,40,42,37,65,30,77,37,38,38,37,31,30,28,91,84,120,0,53,55,77,13,309,271]} 1. d4 {[%emt 0:00:01]} Nf6 {[%emt 0:00:02]} 2. c4 {[%emt 0:00:01]} e6 {[%emt 0:00:02]} 3. Nf3 {[%emt 0:00:02]} d5 {[%emt 0:00:03]} 4. Nc3 {[%emt 0:00:02]} Nbd7 {[%emt 0:00:04]} 5. cxd5 {[%emt 0:00:26]} exd5 {[%emt 0:00:03]} 6. Bf4 {[%emt 0:00:02]} c6 {[%emt 0:00:18]} 7. e3 {[%emt 0:00:02]} Be7 {[%emt 0:00:04]} 8. h3 {[%emt 0:15:54]} O-O {[%emt 0:00:16]} 9. Bd3 {[%emt 0:00:00]} Re8 {[%emt 0:00:10]} 10. Qc2 {[%emt 0:00:00]} Nf8 {[%emt 0:00:19]} 11. O-O {[%emt 0:00:00]} Ng6 {[%emt 0:00:08]} 12. Bh2 {[%emt 0:00:00]} Bd6 {[%emt 0:00:06]} 13. Bxd6 {[%emt 0:00:00]} Qxd6 {[%emt 0:00:02]} 14. Rab1 {[%emt 0:00:00]} Bd7 {[%emt 0:00:53]} 15. b4 {[%emt 0:00:00][%cal Bb2b4,Bb4b5][%mdl 32]} Rac8 {[%emt 0:00:28]} 16. Rfc1 {[%emt 0:00:00]} Qe7 {[%emt 0:00:21]} 17. b5 {[%emt 0:00:00] White is slightly better.} c5 {[%emt 0:02:07]} 18. dxc5 {[%emt 0:00:00]} Rxc5 {[%emt 0:12:44]} 19. Qb3 {[%emt 0:00:00]} Rec8 {[%emt 0:00:00]} 20. Ne2 {[%emt 0:00:00]} Ne4 {[%emt 0:00:00]} 21. Rxc5 {[%emt 0:00:00]} Nxc5 {[%emt 0:00:00]} 22. Qa3 {[%emt 0:00:00]} (22. Qxd5 $2 {loses.} Be6 23. Qd4 Rd8 $19 (23... Bxa2 24. Rc1 $11)) 22... Nxd3 {[%emt 0:00:00]} 23. Qxd3 {[%emt 0:00:00]} Qe4 {[%emt 0:00:00]} 24. Qb3 {[%emt 0:00:00]} Qc4 {[%emt 0:00:00]} ({Avoid the trap} 24... Bxh3 $2 25. Ng3 Qg4 26. Qd1 $18 (26. gxh3 Qxf3 27. e4 dxe4 $19)) 25. Ned4 {[%emt 0:00:00]} Qxb3 {[%emt 0:00:00]} 26. Rxb3 {[%emt 0:00:00]} Ne7 {[%emt 0:00:00]} (26... b6 $11 {is more appropriate.}) 27. Ra3 {[%emt 0:00:00]} Rc1+ {[%emt 0:00:00]} 28. Kh2 {[%emt 0:00:00]} Nc8 {[%emt 0:00:00]} 29. Ne5 {[%emt 0:00:00]} Be8 {[%emt 0:00:00]} 30. Nd3 {[%emt 0:00:00] A dynamic duo of knights.} Rc4 {[%emt 0:00:00]} (30... Rb1 $11 {keeps the balance.}) 31. Nf4 $36 {[%emt 0:00:00][%mdl 2048] Keeping Black busy.} Rc5 {[%emt 0:00:00] [#]} 32. Nd3 {[%emt 0:00:00] White is more active.} (32. b6 $1 $16 {[%cal Rb6a7]} a5 33. Nd3) 32... Rc4 $14 {[%emt 0:00:00]} 33. h4 {[%emt 0:00:00]} Kf8 {[%emt 0:00:00]} 34. Nf4 {[%emt 0:00:00]} (34. g4 $16) 34... Rc5 $2 {[%emt 0:00:00][%mdl 8192] [#]} (34... Rb4 $1 $11 {and Black is okay.}) 35. Nfe6+ $1 {[%emt 0:00:00][%mdl 512] Weighted Error Value: White=0.18 (very precise) /Black=0.36.  Loses game:     	---       	Black=1      Mistake:       	White=2     	Black=2      Inaccurate:     	White=2     	Black=2      OK:         	White=8     	Black=5      Best:        	White=1     	Black=2} 1-0